[Event "70th RUS-ch Women Higher League 2020"]
[Site "Sochi"]
[Date "2020.10.17"]
[Round "9.18"]
[White "Salakhova, Adelya"]
[Black "Mironenko, Galina"]
[Result "1/2-1/2"]
[ECO "A80"]
[WhiteElo "1885"]
[BlackElo "2061"]
[Annotator "ChessBase"]
[PlyCount "136"]
[EventDate "2020.10.08"]
[EventType "swiss"]
[EventCountry "RUS"]
[SourceTitle "playchess.com"]
[Source "ChessBase"]
[SourceQuality "1"]
[TimeControl "40/5400+30:1800+30"]

1. d4 {[%emt 0:00:00]} f5 {[%emt 0:00:00]} 2. Nf3 {[%emt 0:00:00]} Nf6 {[%emt 0:00:00]} 3. g3 {[%emt 0:00:00]} g6 {[%emt 0:00:02]} 4. Bg2 {[%emt 0:00:02]} Bg7 {[%emt 0:00:06]} 5. O-O {[%emt 0:00:07]} O-O {[%emt 0:00:07]} 6. b3 {[%emt 0:00:12]} d6 {[%emt 0:01:28]} 7. Bb2 {[%emt 0:00:19]} c6 {[%emt 0:03:22]} 8. c4 {[%emt 0:01:00]} Qe8 {[%emt 0:04:41]} 9. Nbd2 {[%emt 0:04:59]} Ne4 {[%emt 0:12:33]} 10. Nxe4 {[%emt 0:09:45]} fxe4 {[%emt 0:00:21]} 11. Ng5 {[%emt 0:00:20]} d5 {[%emt 0:01:41]} 12. f3 {[%emt 0:02:37]} h6 {[%emt 0:07:30]} 13. Nh3 {[%emt 0:06:13]} exf3 {[%emt 0:13:40]} 14. exf3 {[%emt 0:00:34]} dxc4 {[%emt 0:03:56]} 15. bxc4 {[%emt 0:00:26]} c5 {[%emt 0:01:10]} 16. Qd2 {[%emt 0:04:01]} Nc6 {[%emt 0:07:28]} 17. dxc5 {[%emt 0:02:40]} Bxh3 {[%emt 0:08:37]} 18. Bxh3 {[%emt 0:00:13]} Rd8 {[%emt 0:01:29]} 19. Be6+ {[%emt 0:04:30]} Kh7 {[%emt 0:00:37]} 20. Qg2 {[%emt 0:00:11]} Nd4 {[%emt 0:02:27]} 21. Bd5 {[%emt 0:02:19]} e6 {[%emt 0:04:08]} 22. Bxb7 {[%emt 0:22:52]} Qe7 {[%emt 0:04:26]} 23. Be4 {[%emt 0:00:43]} Qxc5 {[%emt 0:01:59]} 24. Kh1 {[%emt 0:00:43]} Rb8 {[%emt 0:03:23]} 25. Bxd4 {[%emt 0:01:44]} Bxd4 {[%emt 0:01:41]} 26. Qc2 {[%emt 0:06:37]} Bxa1 {[%emt 0:03:34]} 27. Rxa1 {[%emt 0:00:13]} Rf6 {[%emt 0:03:34]} 28. Rd1 {[%emt 0:01:24]} Qc7 {[%emt 0:01:01]} 29. c5 {[%emt 0:01:29]} Rd8 {[%emt 0:02:44]} 30. Rb1 {[%emt 0:01:16]} Rb8 {[%emt 0:01:23]} 31. c6 {[%emt 0:00:45]} Rxb1+ {[%emt 0:01:44]} 32. Qxb1 {[%emt 0:00:01]} e5 {[%emt 0:01:27]} 33. Qc2 {[%emt 0:02:04]} Kg7 {[%emt 0:01:40]} 34. Qc5 {[%emt 0:03:15]} h5 {[%emt 0:01:25]} 35. a4 {[%emt 0:01:42]} a5 {[%emt 0:01:18]} 36. Kg2 {[%emt 0:00:58]} Re6 {[%emt 0:00:30]} 37. Kf2 {[%emt 0:02:00]} Re7 {[%emt 0:00:25]} 38. Ke3 {[%emt 0:00:43]} Kf6 {[%emt 0:00:32]} 39. Kd3 {[%emt 0:01:20]} Re8 {[%emt 0:00:17]} 40. Kc3 {[%emt 0:00:00]} Rd8 {[%emt 0:00:00]} 41. h3 {[%emt 0:06:46]} Kg7 {[%emt 0:04:42]} 42. g4 {[%emt 0:10:57]} hxg4 {[%emt 0:03:16]} 43. hxg4 {[%emt 0:00:01]} Kf6 {[%emt 0:01:21]} 44. Bd5 {[%emt 0:04:16]} Rb8 {[%emt 0:04:36]} 45. Bc4 {[%emt 0:06:40]} Rd8 {[%emt 0:03:04]} 46. Bd5 {[%emt 0:01:36]} Rb8 {[%emt 0:00:44]} 47. Be4 {[%emt 0:08:02]} Rd8 {[%emt 0:06:37]} 48. Bc2 {[%emt 0:07:35]} Rc8 {[%emt 0:04:35]} 49. g5+ {[%emt 0:01:11]} Kxg5 {[%emt 0:05:46]} 50. Qg1+ {[%emt 0:00:04]} Kf6 {[%emt 0:00:58]} 51. Qxg6+ {[%emt 0:00:05]} Ke7 {[%emt 0:00:05]} 52. Qg7+ {[%emt 0:02:50]} Kd6 {[%emt 0:00:46]} 53. Qf6+ {[%emt 0:00:23]} Kc5 {[%emt 0:00:23]} 54. Be4 {[%emt 0:00:09]} Qd6 {[%emt 0:00:38]} 55. Qh4 {[%emt 0:04:13]} Qd4+ {[%emt 0:00:27]} 56. Kc2 {[%emt 0:00:01]} Qxa4+ {[%emt 0:00:19]} 57. Kd2 {[%emt 0:00:13]} Qd4+ {[%emt 0:00:32]} 58. Ke2 {[%emt 0:00:12]} Qc4+ {[%emt 0:00:47]} 59. Kf2 {[%emt 0:00:26]} Qd4+ {[%emt 0:00:15]} 60. Ke2 {[%emt 0:00:10]} Rc7 {[%emt 0:00:56]} 61. Qh6 {[%emt 0:01:13]} Qb2+ {[%emt 0:00:34]} 62. Kf1 {[%emt 0:00:10]} Qb5+ {[%emt 0:00:31]} 63. Kf2 {[%emt 0:00:14]} Qb6 {[%emt 0:00:27]} 64. Qe3+ {[%emt 0:00:38]} Kb5 {[%emt 0:00:16]} 65. Bd3+ {[%emt 0:00:04]} Kxc6 {[%emt 0:00:22]} 66. Be4+ {[%emt 0:00:04]} Kb5 {[%emt 0:00:17]} 67. Bd3+ {[%emt 0:00:04]} Kc6 {[%emt 0:00:27]} 68. Be4+ {[%emt 0:00:01]} Kb5 {[%emt 0:00:08]} 1/2-1/2